bitfinex-derivatives/quotes_BTCF0:USTF0_20240830
["timestamp","ask_amount","ask_price","bid_price","bid_amount"]
[1725037466731,0.014,58577.0,58574.0,0.3415]
[1725037466732,0.5,58578.0,58577.0,0.085362]
[1725037467626,0.02998489,58579.0,58578.0,0.08536]
[1725037467819,0.44641209,58581.0,58579.0,0.085358]
[1725037468020,0.47637275,58581.0,58576.0,0.001]
[1725037468323,0.47637275,58581.0,58580.0,0.085357]
[1725037468324,0.39101675,58581.0,58580.0,0.085357]
[1725037468524,0.47637275,58581.0,58580.0,0.085357]
[1725037468922,0.085361,58578.0,58577.0,0.085361]
[1725037469821,0.39101675,58581.0,58580.0,0.085357]
[1725037470226,0.03021675,58581.0,58580.0,0.085357]
[1725037470727,0.00025609,58581.0,58580.0,0.170714]
[1725037471130,0.00025609,58581.0,58580.0,1.368191]
[1725037471326,0.00025609,58581.0,58580.0,0.170714]
[1725037471632,0.01025609,58581.0,58580.0,1.282834]
[1725037471825,0.01025609,58581.0,58580.0,1.368191]
[1725037472028,0.01025609,58581.0,58580.0,0.768191]
[1725037472325,0.01025609,58581.0,58580.0,0.2009531]
[1725037472630,0.01025609,58581.0,58580.0,0.1155961]
[1725037472831,0.01025609,58581.0,58580.0,0.085357]
[1725037473124,0.01025609,58581.0,58577.0,0.3608]
[1725037473125,0.09561209,58581.0,58577.0,0.3608]
[1725037473328,0.08536,58578.0,58577.0,0.446162]
[1725037474925,0.09436,58578.0,58577.0,0.446162]
[1725037475124,0.085364,58575.0,58574.0,0.426865]
[1725037475732,0.085364,58575.0,58574.0,1.416865]
[1725037476234,0.009,58578.0,58577.0,0.085362]
[1725037476426,0.3608,58578.0,58577.0,0.085362]
[1725037476929,0.08536,58578.0,58577.0,0.085362]
[1725037478020,0.03089384,58581.0,58580.0,0.085357]
[1725037478423,0.11624984,58581.0,58580.0,0.085357]
[1725037479128,0.03089384,58581.0,58580.0,0.085357]
[1725037480431,0.28089384,58581.0,58580.0,0.085357]
[1725037480832,0.54289384,58581.0,58580.0,0.085357]
[1725037481528,2.15501384,58581.0,58570.0,0.00025609]
[1725037481728,0.44617,58571.0,58570.0,0.00025609]
[1725037482029,0.3608,58571.0,58570.0,0.00025609]
[1725037482233,0.15972,58574.0,58570.0,0.00025609]
[1725037482421,0.35972,58574.0,58573.0,0.085367]
[1725037482627,0.36842793,58574.0,58570.0,0.08562809]
[1725037482821,0.5,58573.0,58570.0,0.08562809]
[1725037483427,0.5,58573.0,58570.0,0.00025609]
[1725037483936,0.585368,58573.0,58570.0,0.08562809]
[1725037484140,0.08537,58571.0,58570.0,0.00025609]
[1725037484829,0.58537,58571.0,58570.0,0.00025609]
[1725037485532,1.89757,58571.0,58570.0,0.00025609]
[1725037486735,1.98294,58571.0,58570.0,0.00025609]
[1725037486932,1.99194,58571.0,58570.0,0.00025609]
[1725037488329,0.79437,58571.0,58570.0,0.00025609]
[1725037489140,1.99194,58571.0,58570.0,0.00025609]
[1725037491838,0.509,58571.0,58570.0,0.08562809]
[1725037493238,0.509,58571.0,58570.0,0.17100009]
[1725037493438,0.009,58571.0,58570.0,0.25637209]
[1725037494049,0.009,58571.0,58570.0,1.24637209]
[1725037495048,0.009,58571.0,58570.0,1.07562809]
[1725037495641,0.09437,58571.0,58570.0,0.08562809]
[1725037496141,0.09437,58571.0,58570.0,1.07562809]
[1725037500450,0.009,58571.0,58570.0,1.07562809]
[1725037500844,0.09437,58571.0,58570.0,0.99025609]
[1725037501046,0.69194,58571.0,58570.0,0.00025609]
[1725037501350,1.19194,58571.0,58570.0,0.00025609]
[1725037501647,1.87731,58571.0,58570.0,0.00025609]
[1725037501839,1.19194,58571.0,58570.0,0.00025609]
[1725037502244,1.79194,58571.0,58570.0,0.00025609]
[1725037502947,0.08538,58564.0,58557.0,0.164]
[1725037503146,0.2,58558.0,58557.0,0.085391]
[1725037503344,0.2,58558.0,58554.0,0.085394]
[1725037503345,0.085391,58557.0,58554.0,0.085394]
[1725037503536,0.2,58555.0,58554.0,0.085394]
[1725037503741,0.2,58555.0,58548.0,0.3286]
[1725037503742,0.085395,58554.0,58548.0,0.3286]
[1725037503942,0.2,58549.0,58548.0,0.3286]
[1725037504141,0.2,58549.0,58542.0,0.1685]
[1725037504142,0.2,58549.0,58545.0,0.085407]
[1725037504352,0.2,58546.0,58545.0,0.085407]
[1725037504552,0.20468502,58546.0,58545.0,0.085407]
[1725037505449,0.20468502,58546.0,58545.0,0.089407]
[1725037505647,0.196,58546.0,58545.0,0.089407]
[1725037506155,0.20437142,58546.0,58545.0,0.089407]
[1725037507041,0.20437142,58546.0,58545.0,0.085407]
[1725037507042,0.197,58546.0,58545.0,0.085407]
[1725037507647,0.20569783,58546.0,58545.0,0.085407]
[1725037507844,0.20569783,58546.0,58543.0,0.00025609]
[1725037508042,0.08541,58544.0,58543.0,0.08566709]
[1725037508449,0.08541,58544.0,58543.0,0.00025609]
[1725037508647,0.001,58546.0,58545.0,0.085408]
[1725037509951,0.201,58546.0,58545.0,0.085408]
[1725037510155,0.201,58546.0,58543.0,0.00025609]
[1725037510156,0.08541,58544.0,58543.0,0.00025609]
[1725037510655,0.17082,58544.0,58543.0,0.00025609]
[1725037510956,0.58541,58544.0,58543.0,0.00025609]
[1725037511453,0.08541,58544.0,58543.0,0.00025609]
[1725037511957,0.58641,58544.0,58543.0,0.00025609]
[1725037512256,0.08641,58544.0,58543.0,0.00025609]
[1725037512851,0.58641,58544.0,58543.0,0.00025609]
[1725037513152,0.08641,58544.0,58543.0,0.00025609]
[1725037513756,0.58641,58544.0,58543.0,0.00025609]
[1725037514158,0.08641,58544.0,58543.0,0.00025609]
[1725037514857,0.58641,58544.0,58543.0,0.00025609]
[1725037515052,0.08641,58544.0,58543.0,0.00025609]
[1725037515746,0.501,58544.0,58543.0,0.37107809]
[1725037516158,0.001,58544.0,58543.0,0.37107809]
[1725037516356,0.001,58544.0,58543.0,1.36107809]
[1725037516656,0.001,58544.0,58543.0,1.07566709]
[1725037516958,0.001,58544.0,58543.0,1.27566709]
[1725037518750,0.001,58544.0,58543.0,1.36107809]
[1725037518954,0.001,58544.0,58543.0,2.47351809]
[1725037519149,0.001,58544.0,58543.0,2.64841809]
[1725037519655,0.00025609,58554.0,58543.0,2.64841809]
[1725037519857,0.00025609,58554.0,58553.0,0.085396]
[1725037520052,0.00859202,58554.0,58553.0,0.085396]
[1725037520449,0.00025609,58554.0,58553.0,0.170792]
[1725037520662,0.00025609,58554.0,58553.0,0.531592]
[1725037520853,0.00125609,58554.0,58553.0,0.531592]
[1725037521047,0.00125609,58554.0,58553.0,0.446196]
[1725037521647,0.00125609,58554.0,58553.0,0.531592]
[1725037521847,0.00025609,58554.0,58553.0,0.531592]
[1725037522162,0.00025609,58554.0,58553.0,0.085396]
[1725037522857,0.00025609,58554.0,58553.0,0.170792]
[1725037523062,0.00025609,58554.0,58553.0,0.177792]
[1725037523363,0.5,58563.0,58562.0,0.085383]
[1725037523567,0.5,58563.0,58562.0,0.370766]
[1725037523754,0.5,58568.0,58567.0,0.085376]
[1725037524065,0.36952136,58569.0,58568.0,0.085375]
[1725037524459,0.89895794,58569.0,58568.0,0.085375]
[1725037524892,0.39895794,58569.0,58568.0,0.085375]
[1725037525162,0.39895794,58569.0,58564.0,1.07538]
[1725037525362,0.2,58567.0,58566.0,0.085378]
[1725037526365,0.199,58567.0,58566.0,0.085378]
[1725037527069,0.199,58567.0,58566.0,0.086378]
[1725037527070,0.201,58567.0,58566.0,0.086378]
[1725037527451,0.002,58567.0,58566.0,0.086378]
[1725037528177,0.0245606,58567.0,58566.0,0.086378]
[1725037530261,0.216,58567.0,58566.0,0.086378]
[1725037530458,0.48409755,58568.0,58567.0,0.085376]
[1725037530667,0.69264875,58568.0,58567.0,0.085376]
[1725037530864,0.49264875,58568.0,58567.0,0.085376]
[1725037531066,0.02943658,58569.0,58568.0,0.085375]
[1725037531366,0.5,58572.0,58568.0,0.085375]
[1725037531562,0.56168,58575.0,58573.0,0.085367]
[1725037531563,0.50025609,58574.0,58573.0,0.085367]
[1725037531764,0.00025609,58574.0,58573.0,0.285367]
[1725037531961,0.00025609,58574.0,58573.0,0.456101]
[1725037532470,0.00025609,58574.0,58573.0,1.147461]
[1725037532858,0.00025609,58574.0,58573.0,2.137461]
[1725037533562,0.00025609,58574.0,58573.0,2.16738958]
[1725037533870,0.00125609,58574.0,58573.0,0.550934]
[1725037534366,0.00525609,58574.0,58573.0,0.551934]
[1725037536359,0.00525609,58574.0,58573.0,0.266567]
[1725037536563,0.09062209,58574.0,58573.0,0.002]
[1725037536776,0.17598809,58574.0,58573.0,0.002]
[1725037537160,1.94782809,58574.0,58573.0,0.002]
[1725037537573,0.085391,58557.0,58556.0,0.00289609]
[1725037537765,1.08128,58557.0,58550.0,0.02973696]
[1725037537968,0.646199,58551.0,58550.0,0.02973696]
[1725037538168,0.5608,58551.0,58539.0,0.085417]
[1725037538367,0.3608,58540.0,58539.0,0.085417]
[1725037538566,0.3608,58540.0,58535.0,0.085422]
[1725037538774,0.3608,58540.0,58538.0,0.085418]
[1725037539669,0.3608,58540.0,58522.0,0.44624]
[1725037539670,0.7,58539.0,58522.0,0.44624]
[1725037539965,0.5998,58523.0,58515.0,0.085451]
[1725037540171,0.41834735,58527.0,58513.0,0.6108]
[1725037540362,0.5,58524.0,58513.0,0.6108]
[1725037540566,0.48625632,58526.0,58518.0,0.085447]
[1725037540890,0.48625632,58526.0,58516.0,0.25]
[1725037541171,0.48625632,58526.0,58522.0,0.009]
[1725037541672,0.00025632,58526.0,58524.0,0.085438]
[1725037543070,0.03109012,58526.0,58519.0,0.3608]
[1725037543272,0.03109012,58526.0,58515.0,0.014]
[1725037543273,0.6108,58525.0,58515.0,0.014]
[1725037543471,0.6108,58525.0,58512.0,1.27056888]
[1725037543766,0.6108,58525.0,58520.0,0.085444]
[1725037543971,0.6108,58525.0,58497.0,0.06799204]
[1725037543972,0.25,58521.0,58498.0,0.3608]
[1725037544178,0.3608,58515.0,58505.0,0.25]
[1725037544371,0.5,58520.0,58519.0,0.085446]
[1725037544582,0.5,58521.0,58519.0,0.085446]
[1725037544775,0.08544,58523.0,58510.0,0.3608]
[1725037545081,0.25,58521.0,58516.0,0.08545]
[1725037545282,0.25,58521.0,58510.0,1.3508]
[1725037545481,0.6108,58517.0,58513.0,0.085454]
[1725037545675,0.696249,58517.0,58513.0,0.085454]
[1725037545977,0.696249,58517.0,58510.0,1.076579]
[1725037546178,0.696249,58517.0,58510.0,0.085459]
[1725037546179,0.085451,58516.0,58510.0,0.085459]
[1725037546486,0.25,58513.0,58506.0,0.085465]
[1725037546776,0.5,58516.0,58505.0,1.3508]
[1725037546975,0.5,58516.0,58512.0,0.085456]
[1725037547183,0.5,58514.0,58512.0,0.085456]
[1725037547373,0.5,58515.0,58513.0,0.085455]
[1725037547569,0.5,58516.0,58513.0,0.085455]
[1725037547871,0.5,58514.0,58505.0,1.38074817]
[1725037548275,0.5,58515.0,58513.0,0.085455]
[1725037548581,0.00096001,58517.0,58516.0,0.08545]
[1725037548772,0.02947257,58523.0,58505.0,0.39186817]
[1725037548976,0.585443,58522.0,58513.0,0.085455]
[1725037549171,0.585443,58522.0,58519.0,0.085446]
[1725037549372,0.085443,58522.0,58519.0,0.085446]
[1725037549878,0.41955023,58523.0,58520.0,0.085444]
[1725037550080,0.41955023,58523.0,58516.0,0.99124]
[1725037550279,0.3608,58524.0,58517.0,0.1678]
[1725037550479,0.3608,58524.0,58518.0,0.085448]
[1725037550795,0.3608,58524.0,58517.0,0.1678]
[1725037550991,0.3608,58524.0,58523.0,0.08544]
[1725037551191,0.446239,58524.0,58523.0,0.08544]
[1725037551485,0.53938364,58525.0,58524.0,0.085439]
[1725037551486,0.03938364,58525.0,58524.0,0.085439]
[1725037551684,0.03838364,58525.0,58524.0,0.085439]
[1725037551880,0.08569232,58526.0,58524.0,0.085439]
[1725037552091,0.085437,58525.0,58524.0,0.085439]
[1725037552281,0.585437,58525.0,58524.0,0.085439]
[1725037552480,0.02987364,58526.0,58525.0,0.085437]
[1725037553790,0.11530964,58526.0,58525.0,0.085437]
[1725037554282,1.89247364,58526.0,58517.0,0.5286]
[1725037554487,1.89247364,58526.0,58516.0,0.00124]
[1725037554488,0.085449,58517.0,58516.0,0.00124]
[1725037554693,0.085451,58516.0,58512.0,0.085455]
[1725037554889,0.6108,58513.0,58512.0,0.085455]
[1725037555087,0.6108,58513.0,58504.0,0.3286]
[1725037555392,0.6108,58513.0,58494.0,0.5366]
[1725037555393,0.25,58506.0,58498.0,0.3286]
[1725037555685,0.00025632,58508.0,58507.0,0.085464]
[1725037557487,0.00025632,58508.0,58507.0,1.075464]
[1725037559395,0.02911867,58512.0,58507.0,0.99]
[1725037559590,0.085462,58509.0,58508.0,0.085461]
[1725037560594,0.085462,58509.0,58507.0,0.99112]
[1725037560595,0.085462,58508.0,58507.0,0.99112]
[1725037560889,0.086338,58512.0,58507.0,0.99]
[1725037561091,0.39053023,58513.0,58512.0,0.085456]
[1725037561296,0.97598523,58513.0,58512.0,0.085456]
[1725037561490,0.47598523,58513.0,58512.0,0.085456]
[1725037562194,0.11518523,58513.0,58512.0,0.085456]
[1725037563194,0.02973023,58513.0,58512.0,0.085456]
[1725037563496,0.08571032,58514.0,58513.0,0.085455]
[1725037563682,0.00025632,58514.0,58513.0,0.085455]
[1725037563883,0.02969343,58514.0,58513.0,0.17091]
[1725037564083,0.00868427,58525.0,58517.0,0.085449]
[1725037564290,0.3608,58532.0,58529.0,0.085431]
[1725037564497,0.585429,58531.0,58530.0,0.99]
[1725037564795,0.5,58531.0,58514.0,0.07659204]
[1725037564994,0.085449,58518.0,58515.0,0.085451]
[1725037565192,0.085449,58518.0,58517.0,0.00025632]
[1725037566394,0.085445,58520.0,58517.0,0.99025632]
[1725037566594,0.3898443,58522.0,58517.0,1.07524637]
[1725037566901,0.4752883,58522.0,58521.0,0.085443]
[1725037568200,0.3898443,58522.0,58521.0,0.085443]
[1725037568999,0.3608,58522.0,58521.0,0.085443]
[1725037569317,0.446234,58527.0,58526.0,0.085436]
[1725037569509,0.085434,58527.0,58526.0,0.085436]
[1725037570604,0.11427451,58527.0,58526.0,0.085436]
[1725037571909,0.02884051,58527.0,58526.0,0.085436]
[1725037572211,0.085429,58531.0,58527.0,0.085434]
[1725037572524,0.00865947,58532.0,58527.0,0.085434]
[1725037572525,0.02978344,58528.0,58527.0,0.085434]
[1725037572698,0.00025632,58528.0,58527.0,0.085434]
[1725037572898,0.00025632,58528.0,58527.0,0.335434]
[1725037573311,0.00025632,58528.0,58527.0,0.55109227]
[1725037573504,0.5,58535.0,58534.0,0.085424]
[1725037573699,0.3648,58550.0,58535.0,0.085423]
[1725037573700,0.5,58547.0,58535.0,0.085423]
[1725037573899,0.446201,58550.0,58535.0,0.085423]
[1725037573900,0.39066977,58544.0,58543.0,0.085411]
[1725037574205,0.7434,58558.0,58543.0,0.085411]
[1725037574206,0.58635001,58558.0,58543.0,0.49098164]
[1725037574406,0.085379,58565.0,58557.0,0.6108]
[1725037574601,0.7803,58574.0,58557.0,0.6108]
[1725037574602,0.5,58563.0,58562.0,0.3608]
[1725037574799,0.5,58564.0,58562.0,0.3608]
[1725037575003,0.085379,58565.0,58562.0,0.3608]
[1725037575505,0.585379,58565.0,58562.0,0.3608]
[1725037575708,0.6108,58563.0,58557.0,0.99]
[1725037575913,0.085392,58556.0,58555.0,0.00025632]
[1725037576611,0.585392,58556.0,58555.0,0.00025632]
[1725037577318,1.697712,58556.0,58555.0,0.00025632]
[1725037577502,1.783104,58556.0,58555.0,0.00025632]
[1725037577703,1.783104,58556.0,58541.0,0.004]
[1725037577704,0.085413,58542.0,58541.0,0.004]
[1725037578002,0.5,58541.0,58540.0,0.99]
[1725037578203,0.50870073,58541.0,58540.0,1.075415]
[1725037578402,0.00870073,58541.0,58540.0,0.085415]
[1725037578610,0.5,58543.0,58535.0,0.00025632]
[1725037578828,0.00025632,58546.0,58543.0,0.085411]
[1725037579010,0.00875542,58545.0,58543.0,0.085411]
[1725037580713,0.02971828,58546.0,58541.0,0.3608]
[1725037580912,0.02971828,58546.0,58542.0,0.1655]
[1725037581110,0.02971828,58546.0,58545.0,0.085408]
[1725037581805,0.00025632,58546.0,58545.0,1.197848]
[1725037582315,0.00025632,58546.0,58545.0,0.085408]
[1725037582613,0.00025632,58546.0,58545.0,1.075408]
[1725037584015,0.08566332,58546.0,58545.0,0.99]
[1725037584316,0.08566332,58546.0,58542.0,0.3608]
[1725037584317,0.00866295,58546.0,58542.0,0.3608]
[1725037584609,0.420822,58543.0,58542.0,0.3608]
[1725037585013,0.420822,58543.0,58535.0,0.00025632]
[1725037585014,0.08542,58537.0,58536.0,0.3608]
[1725037585214,0.42084,58537.0,58536.0,0.3608]
[1725037585412,0.585421,58536.0,58535.0,0.00025632]
[1725037585606,1.354562,58536.0,58535.0,0.00025632]
[1725037585809,1.954562,58536.0,58535.0,1e-08]
[1725037586008,1.269141,58536.0,58535.0,1e-08]
[1725037586215,0.756621,58536.0,58535.0,1e-08]
[1725037586417,0.6712,58536.0,58535.0,1e-08]
[1725037586807,0.6712,58536.0,58535.0,0.08542301]
[1725037587116,0.3608,58537.0,58536.0,0.085421]
[1725037587315,0.085413,58542.0,58536.0,0.446221]
[1725037587518,0.085413,58542.0,58536.0,0.3608]
[1725037588014,0.085413,58542.0,58537.0,0.085419]
[1725037588919,0.08542,58537.0,58536.0,0.3608]
[1725037589135,0.6108,58537.0,58507.0,0.5272]
[1725037589309,0.3608,58520.0,58507.0,0.5272]
[1725037589509,0.085452,58516.0,58507.0,0.5272]
[1725037589713,0.00854914,58518.0,58507.0,0.5272]
[1725037590012,0.00025632,58518.0,58507.0,0.52745632]
[1725037590209,0.00879178,58518.0,58507.0,0.52745632]
[1725037590415,0.00025632,58518.0,58510.0,0.25]
[1725037590717,0.00025632,58518.0,58516.0,0.08545]
[1725037591415,0.00025632,58518.0,58517.0,0.085449]
[1725037595619,0.48290032,58525.0,58524.0,0.085439]
[1725037595823,0.18462801,58532.0,58517.0,0.3608]
[1725037595824,0.6108,58527.0,58517.0,0.3608]
[1725037596018,0.085443,58521.0,58520.0,0.085444]
[1725037596219,0.335443,58521.0,58520.0,0.085444]
[1725037597124,0.25,58521.0,58514.0,0.414053]
[1725037597320,0.335452,58515.0,58514.0,0.414053]
[1725037597711,0.085448,58518.0,58517.0,0.085448]
[1725037597914,0.1746,58520.0,58519.0,0.085446]
[1725037598112,0.4246,58520.0,58515.0,0.085451]
[1725037598321,0.9246,58520.0,58515.0,0.085451]
[1725037598514,0.08545,58517.0,58515.0,0.085451]
[1725037598920,0.08545,58517.0,58516.0,0.08545]
[1725037599823,0.58545,58517.0,58516.0,0.08545]
[1725037600123,0.085452,58515.0,58514.0,0.3286]
[1725037600328,0.085452,58515.0,58512.0,0.085455]
[1725037600329,0.085455,58513.0,58512.0,0.085455]
[1725037600623,0.5,58514.0,58509.0,0.44626]
[1725037600820,0.585454,58514.0,58511.0,0.085458]
[1725037601924,0.085456,58513.0,58511.0,0.085458]
[1725037602320,0.085456,58512.0,58511.0,0.085458]
[1725037602628,0.085462,58509.0,58508.0,0.085462]
[1725037603730,0.585462,58509.0,58508.0,0.085462]
[1725037604225,0.085462,58509.0,58508.0,0.085462]
[1725037604730,0.585462,58509.0,58508.0,0.085462]
[1725037604929,0.085462,58509.0,58508.0,0.085462]
[1725037605525,0.585462,58509.0,58508.0,0.085462]
[1725037606429,0.55922089,58514.0,58507.0,0.25025632]
[1725037606430,0.085456,58512.0,58507.0,0.25025632]
[1725037606735,0.085456,58512.0,58511.0,0.085458]
[1725037607822,0.5,58513.0,58507.0,0.25025632]
[1725037608018,0.5,58513.0,58512.0,0.085456]
[1725037608719,0.02984089,58514.0,58513.0,0.085455]
[1725037608923,0.02984089,58514.0,58511.0,0.6108]
[1725037608924,0.00025632,58515.0,58514.0,0.085453]
[1725037609329,0.02416185,58515.0,58514.0,0.085453]
[1725037609526,0.00025632,58515.0,58514.0,0.085453]
[1725037610748,0.00025632,58515.0,58514.0,1.729839]
[1725037610932,0.585434,58528.0,58521.0,0.085443]
[1725037611129,0.5,58531.0,58530.0,0.08543]
[1725037611432,0.5,58533.0,58532.0,0.085427]
[1725037612332,0.02409921,58534.0,58533.0,0.085426]
[1725037612527,0.00025632,58538.0,58536.0,0.08542]
[1725037612528,0.08567532,58538.0,58536.0,0.08542]
[1725037612721,0.10994511,58538.0,58532.0,0.3608]
[1725037613329,0.10994511,58538.0,58537.0,0.08542]
[1725037613925,0.02452611,58538.0,58537.0,0.08542]
[1725037615637,0.08542,58537.0,58534.0,0.085424]
[1725037615830,0.08542,58537.0,58535.0,0.085422]
[1725037616824,0.25,58536.0,58535.0,0.085422]
[1725037617226,0.6108,58536.0,58532.0,0.085427]
[1725037617431,0.6108,58536.0,58527.0,0.36105632]
[1725037617631,0.6108,58536.0,58527.0,0.00025632]
[1725037617632,0.085433,58528.0,58527.0,0.00025632]
[1725037618342,0.170866,58528.0,58527.0,0.00025632]
[1725037618537,0.670866,58528.0,58527.0,0.00025632]
[1725037618840,2.229659,58528.0,58527.0,0.00025632]
[1725037621732,0.75,58515.0,58509.0,0.00025632]
[1725037621938,0.75,58515.0,58513.0,0.085455]
[1725037622133,0.25,58515.0,58513.0,0.085455]
[1725037622534,0.5,58514.0,58513.0,0.085455]
[1725037622730,0.085459,58510.0,58509.0,0.00025632]
[1725037622936,0.335459,58510.0,58509.0,0.00025632]
[1725037623334,0.835459,58510.0,58509.0,0.00025632]
[1725037623742,0.335459,58510.0,58509.0,0.00025632]
[1725037624442,0.835459,58510.0,58509.0,0.00025632]
[1725037624745,0.335459,58510.0,58509.0,0.00025632]
[1725037625346,0.835459,58510.0,58509.0,0.00025632]
[1725037625748,0.335459,58510.0,58509.0,0.00025632]
[1725037626242,0.85883068,58510.0,58509.0,0.00025632]
[1725037626644,0.02337168,58510.0,58509.0,0.08571732]
[1725037626848,0.5,58512.0,58511.0,0.085458]
[1725037627146,0.75,58523.0,58519.0,0.085446]
[1725037627343,0.02347873,58520.0,58519.0,0.085446]
[1725037627550,0.00025632,58520.0,58519.0,1.075446]
[1725037627842,0.08570132,58520.0,58519.0,1.075446]
[1725037628047,0.08570132,58520.0,58519.0,0.085446]
[1725037628554,0.58570132,58520.0,58519.0,0.085446]
[1725037628943,0.08570132,58520.0,58519.0,0.085446]
[1725037629441,0.00025632,58520.0,58519.0,0.085446]
[1725037629636,0.50025632,58520.0,58519.0,0.085446]
[1725037630135,0.00025632,58520.0,58519.0,0.085446]
[1725037631143,0.00025632,58520.0,58519.0,1.075446]
[1725037631852,0.00025632,58520.0,58519.0,1.57277222]
[1725037632041,0.00025632,58520.0,58519.0,1.521692]
[1725037632245,0.00025632,58520.0,58519.0,2.719778]
[1725037632551,0.58942,58537.0,58534.0,0.085424]
[1725037632843,0.58942,58537.0,58528.0,0.335433]
[1725037632844,0.6108,58535.0,58528.0,0.3608]
[1725037633050,0.085436,58527.0,58526.0,0.085436]
[1725037633359,0.08544,58524.0,58523.0,0.085439]
[1725037633548,0.085442,58522.0,58521.0,0.00025632]
[1725037633847,0.531684,58522.0,58521.0,0.00025632]
[1725037634044,1.558882,58522.0,58521.0,0.00025632]
[1725037634240,1.458882,58522.0,58521.0,0.00025632]
[1725037634447,0.946242,58522.0,58521.0,0.00025632]
[1725037636543,2.08292435,58522.0,58521.0,0.00025632]
[1725037636753,2.16836635,58522.0,58521.0,0.00025632]
[1725037636942,2.08292435,58522.0,58521.0,0.00025632]
[1725037637144,1.48292435,58522.0,58521.0,0.00025632]
[1725037637342,2.08292435,58522.0,58521.0,0.00025632]
[1725037637542,1.48292435,58522.0,58521.0,0.00025632]
[1725037637745,2.08292435,58522.0,58521.0,0.00025632]
[1725037638250,2.16836635,58522.0,58521.0,0.00025632]
[1725037638556,0.085459,58510.0,58509.0,0.004]
[1725037638750,0.085459,58510.0,58507.0,0.085463]
[1725037639257,0.5,58509.0,58507.0,0.085463]
[1725037639458,0.5,58509.0,58508.0,0.085462]
[1725037639960,0.5087608,58509.0,58508.0,0.085462]
[1725037640257,0.5,58509.0,58508.0,0.085462]
[1725037640448,0.5,58509.0,58508.0,0.13653229]
[1725037640751,0.50851191,58510.0,58505.0,0.3608]
[1725037640948,0.335465,58506.0,58505.0,0.3608]
[1725037641147,0.34415823,58506.0,58505.0,0.3608]
[1725037641455,0.34415823,58506.0,58503.0,0.05132661]
[1725037641456,0.5,58505.0,58504.0,0.085468]
[1725037641645,0.00869323,58506.0,58504.0,0.085468]
[1725037641854,0.3608,58507.0,58506.0,0.085465]
[1725037642849,0.5,58506.0,58504.0,0.085468]
[1725037643155,0.25,58505.0,58504.0,0.085468]
[1725037643746,0.085468,58504.0,58503.0,0.05132661]
[1725037643953,0.285468,58504.0,58503.0,0.00025632]
[1725037644458,0.785468,58504.0,58503.0,0.00025632]
[1725037644658,0.285468,58504.0,58503.0,0.00025632]
[1725037645253,0.785468,58504.0,58503.0,0.00025632]
[1725037645655,0.285468,58504.0,58503.0,0.00025632]
[1725037646158,0.285468,58504.0,58503.0,0.08572532]
[1725037646159,0.02374384,58504.0,58503.0,0.08572532]
[1725037646352,0.5,58504.0,58503.0,0.08572532]
[1725037646553,0.446266,58506.0,58505.0,0.085467]
[1725037647357,0.38507227,58506.0,58505.0,0.085467]
[1725037648852,0.63507227,58506.0,58505.0,0.085467]
[1725037649248,1.22053727,58506.0,58505.0,0.085467]
[1725037650056,0.77427227,58506.0,58505.0,0.085467]
[1725037650259,0.52427227,58506.0,58505.0,0.085467]
[1725037650561,0.02427227,58506.0,58505.0,0.085467]
[1725037650860,0.336382,58509.0,58508.0,0.085462]
[1725037651160,0.335462,58509.0,58508.0,0.085462]
[1725037651355,0.35973883,58509.0,58508.0,0.085462]
[1725037651550,0.85973883,58509.0,58508.0,0.085462]
[1725037651761,0.35973883,58509.0,58508.0,0.085462]
[1725037652258,0.02427683,58509.0,58508.0,0.085462]
[1725037652462,0.36954715,58512.0,58511.0,0.085458]
[1725037652856,0.97928472,58512.0,58511.0,0.085458]
[1725037656164,0.89382872,58512.0,58505.0,1.3508]
[1725037656470,0.25,58506.0,58505.0,0.3608]
[1725037657068,0.25,58506.0,58505.0,0.446266]
[1725037657270,0.335462,58509.0,58508.0,0.08546]
[1725037657764,0.085465,58506.0,58505.0,0.085467]
[1725037657963,0.335465,58506.0,58505.0,0.085467]
[1725037658164,0.085468,58504.0,58503.0,0.08572532]
[1725037658972,0.585468,58504.0,58503.0,0.08572532]
[1725037659177,0.085468,58504.0,58503.0,0.08572532]
[1725037659472,0.170936,58504.0,58503.0,0.00025632]
[1725037659768,0.670936,58504.0,58503.0,0.00025632]
[1725037660271,0.170936,58504.0,58503.0,0.00025632]
[1725037660867,0.670936,58504.0,58503.0,0.00025632]
[1725037662065,1.183736,58504.0,58503.0,0.00025632]
[1725037662265,1.869204,58504.0,58503.0,0.00025632]
[1725037662465,2.230004,58504.0,58503.0,0.00025632]
[1725037662965,2.25404774,58504.0,58503.0,0.00025632]
[1725037663564,2.25404774,58504.0,58495.0,0.04115853]
[1725037663565,0.25644,58496.0,58495.0,0.04115853]
[1725037663768,0.25,58495.0,58482.0,0.004]
[1725037663963,0.25,58482.0,58481.0,0.085502]
[1725037664361,0.3355,58482.0,58481.0,0.085502]
[1725037664760,0.3355,58482.0,58478.0,0.3608]
[1725037664761,0.085502,58481.0,58478.0,0.3608]
[1725037664973,0.50025632,58487.0,58478.0,0.3608]
[1725037665169,0.25,58480.0,58479.0,0.085504]
[1725037668375,0.335503,58480.0,58479.0,0.085504]
[1725037668677,0.35959658,58480.0,58479.0,0.085504]
[1725037669969,0.30959658,58480.0,58479.0,0.085504]
[1725037670162,0.5,58484.0,58483.0,0.085499]
[1725037670368,0.00025632,58487.0,58486.0,0.256482]
[1725037670369,3.2e-07,58487.0,58486.0,0.256482]
[1725037670568,3.2e-07,58487.0,58486.0,2.015696]
[1725037670775,3.2e-07,58487.0,58486.0,3.005696]
[1725037671676,3.2e-07,58487.0,58486.0,3.13598636]
[1725037671878,0.00876308,58500.0,58499.0,0.085475]
[1725037672071,0.5165792,58505.0,58504.0,0.085468]
[1725037672379,0.2,58508.0,58507.0,0.085464]